fUST/lending_fUST_20251218
["ID","MTS","AMOUNT","RATE_DAILY","PERIOD"]
[399014006,1766073573579,-156.246573,0.00039041,120]
[399014007,1766073573606,-151.0,0.00039041,120]
[399014008,1766073573632,-156.246573,0.00039041,120]
[399014009,1766073573659,-151.0,0.00039041,120]
[399014010,1766073573686,-151.0,0.00039041,120]
[399014011,1766073573713,-156.246573,0.00039041,120]
[399014012,1766073573741,-156.246573,0.00039041,120]
[399014013,1766073573769,-272.0,0.00039041,120]
[399014014,1766073573797,-151.0,0.00039041,120]
[399014015,1766073573826,-151.0,0.00039041,120]
[399014016,1766073573853,-631.13963,0.00039041,120]
[399014017,1766073573882,-631.13963,0.00039041,120]
[399014018,1766073573911,-631.13963,0.00039041,120]
[399014019,1766073573941,-631.13963,0.00039041,120]
[399014020,1766073573971,-151.0,0.00039041,120]
[399014021,1766073574001,-298.259429,0.00039041,120]
[399014022,1766073574041,-237.9803,0.00039041,120]
[399014023,1766073574070,-151.0,0.00039041,120]
[399014024,1766073574096,-151.0,0.00039041,120]
[399014025,1766073574123,-151.0,0.00039041,120]
[399014026,1766073574150,-151.0,0.00039041,120]
[399014027,1766073574177,-151.0,0.00039041,120]
[399014028,1766073574205,-373.916161,0.00039041,120]
[399014029,1766073574238,-373.916161,0.00039041,120]
[399014030,1766073574267,-373.916161,0.00039041,120]
[399014031,1766073574295,-373.916161,0.00039041,120]
[399014032,1766073574321,-211.387245,0.00039041,120]
[399014033,1766073574348,-151.0,0.00039041,120]
[399014034,1766073574376,-151.0,0.00039041,120]
[399014035,1766073574402,-151.0,0.00039041,120]
[399014036,1766073574428,-189.914235,0.00039041,120]
[399014037,1766073574454,-189.914235,0.00039041,120]
[399014038,1766073574480,-189.914235,0.00039041,120]
[399014039,1766073574505,-189.914235,0.00039041,120]
[399014040,1766073574531,-151.0,0.00039041,120]
[399014041,1766073574643,-151.0,0.00039041,120]
[399014042,1766073574677,-151.0,0.00039041,120]
[399014043,1766073574704,-151.0,0.00039041,120]
[399014044,1766073574731,-292.700924,0.00039041,120]
[399014045,1766073574758,-151.0,0.00039041,120]
[399014046,1766073574785,-151.0,0.00039041,120]
[399014047,1766073574811,-169.747505,0.00039041,120]
[399014048,1766073574837,-151.82961,0.00039041,120]
[399014049,1766073574864,-151.0,0.00039041,120]
[399014050,1766073574892,-151.0,0.00039041,120]
[399014051,1766073574919,-151.0,0.00039041,120]
[399014052,1766073574945,-151.0,0.00039041,120]
[399014053,1766073574977,-151.0,0.00039041,120]
[399014054,1766073575005,-151.0,0.00039041,120]
[399014055,1766073575033,-1235.404466,0.00039041,120]
[399014056,1766073575061,-1235.404466,0.00039041,120]
[399014057,1766073575090,-1235.404466,0.00039041,120]
[399014058,1766073575117,-1235.404466,0.00039041,120]
[399014059,1766073575145,-151.0,0.00039041,120]
[399014060,1766073575174,-355.231329,0.00039041,120]
[399014061,1766073575202,-355.231329,0.00039041,120]
[399014062,1766073575231,-355.231329,0.00039041,120]
[399014063,1766073575260,-355.231329,0.00039041,120]
[399014064,1766073575291,-355.231329,0.00039041,120]
[399014065,1766073575323,-355.231329,0.00039041,120]
[399014066,1766073575353,-355.231329,0.00039041,120]
[399014067,1766073575383,-355.231329,0.00039041,120]
[399014068,1766073575412,-276.0,0.00039057,120]
[399014069,1766073575442,-500.0,0.00039082,14]
[399014070,1766073575472,-200.0,0.00039417,120]
[399014071,1766073575500,-500.0,0.00039576,30]
[399014072,1766073575528,-200.0,0.0003962,120]
[399014073,1766073575556,-162.0,0.000397,120]
[399014074,1766073575585,-151.0,0.00039815,120]
[399014075,1766073575611,-153.880179,0.00039815,120]
[399014076,1766073575638,-1041.66666667,0.00039815,30]
[399014077,1766073575664,-151.0,0.00039836,120]
[399014078,1766073575690,-151.0,0.00039836,120]
[399014079,1766073575716,-151.0,0.00039836,120]
[399014080,1766073575743,-151.0,0.00039836,120]
[399014081,1766073575770,-151.0,0.00039836,120]
[399014082,1766073575797,-151.0,0.00039836,120]
[399014083,1766073575824,-151.0,0.00039836,120]
[399014084,1766073575852,-151.0,0.00039836,120]
[399014085,1766073575880,-151.0,0.00039836,120]
[399014086,1766073575909,-151.0,0.00039836,120]
[399014087,1766073575936,-250.20722,0.00039836,120]
[399014088,1766073575967,-151.0,0.00039836,120]
[399014089,1766073575994,-157.435943,0.00039836,120]
[399014090,1766073576023,-373.916161,0.00039836,120]
[399014091,1766073576055,-373.916161,0.00039836,120]
[399014092,1766073576087,-373.916161,0.00039836,120]
[399014093,1766073576117,-373.916161,0.00039836,120]
[399014094,1766073576146,-373.916161,0.00039836,120]
[399014095,1766073576175,-373.916161,0.00039836,120]
[399014096,1766073576204,-373.916161,0.00039836,120]
[399014097,1766073576324,-373.916161,0.00039836,120]
[399014098,1766073576354,-373.916161,0.00039836,120]
[399014099,1766073576384,-373.916161,0.00039836,120]
[399014100,1766073576412,-373.916161,0.00039836,120]
[399014101,1766073576440,-373.916166,0.00039836,120]
[399014102,1766073576467,-281.222392,0.00039836,120]
[399014103,1766073576494,-151.0,0.00039836,120]
[399014104,1766073576520,-189.914235,0.00039836,120]
[399014105,1766073576547,-189.914235,0.00039836,120]
[399014106,1766073576573,-189.914235,0.00039836,120]
[399014107,1766073576599,-189.914235,0.00039836,120]
[399014108,1766073576625,-189.914235,0.00039836,120]
[399014109,1766073576652,-189.914235,0.00039836,120]
[399014110,1766073576680,-189.914235,0.00039836,120]
[399014111,1766073576706,-189.914235,0.00039836,120]
[399014112,1766073576733,-189.914235,0.00039836,120]
[399014113,1766073576760,-189.914235,0.00039836,120]
[399014114,1766073576786,-189.914235,0.00039836,120]
[399014115,1766073576812,-151.0,0.00039836,120]
[399014116,1766073576839,-189.914243,0.00039836,120]
[399014117,1766073576866,-151.0,0.00039836,120]
[399014118,1766073576894,-151.0,0.00039836,120]
[399014119,1766073576921,-151.0,0.00039836,120]
[399014120,1766073576948,-151.0,0.00039836,120]
[399014121,1766073576977,-151.0,0.00039836,120]
[399014122,1766073577004,-151.0,0.00039836,120]
[399014123,1766073577033,-291.498526,0.00039836,120]
[399014124,1766073577063,-151.0,0.00039836,120]
[399014125,1766073577091,-151.0,0.00039836,120]
[399014126,1766073577119,-355.231329,0.00039836,120]
[399014127,1766073577146,-355.231329,0.00039836,120]
[399014128,1766073577173,-355.231329,0.00039836,120]
[399014129,1766073577201,-355.231329,0.00039836,120]
[399014130,1766073577228,-151.0,0.00039836,120]
[399014131,1766073577255,-355.231329,0.00039836,120]
[399014132,1766073577284,-151.0,0.00039836,120]
[399014133,1766073577311,-355.231329,0.00039836,120]
[399014134,1766073577338,-151.0,0.00039836,120]
[399014135,1766073577365,-355.231329,0.00039836,120]
[399014136,1766073577391,-355.231329,0.00039836,120]
[399014137,1766073577418,-355.231329,0.00039836,120]
[399014138,1766073577445,-355.231329,0.00039836,120]
[399014139,1766073577472,-355.231329,0.00039836,120]
[399014140,1766073577498,-355.231325,0.00039836,120]
[399014141,1766073577523,-151.0,0.00039836,120]
[399014142,1766073577548,-151.0,0.00039836,120]
[399014143,1766073577573,-151.0,0.00039836,120]
[399014144,1766073577600,-151.0,0.00039836,120]
[399014145,1766073577627,-151.0,0.00039836,120]
[399014146,1766073577654,-151.0,0.00039836,120]
[399014147,1766073577682,-151.0,0.00039836,120]
[399014148,1766073577707,-264.09234,0.00039836,120]
[399014149,1766073577733,-1235.404466,0.00039836,120]
[399014150,1766073577760,-1235.404466,0.00039836,120]
[399014151,1766073577873,-1235.404466,0.00039836,120]
[399014152,1766073577900,-1235.404466,0.00039836,120]
[399014153,1766073577927,-1235.404466,0.00039836,120]
[399014154,1766073577954,-1235.404466,0.00039836,120]
[399014155,1766073577985,-1235.404466,0.00039836,120]
[399014156,1766073578013,-1235.404466,0.00039836,120]
[399014157,1766073578042,-1235.404466,0.00039836,120]
[399014158,1766073578072,-1235.404466,0.00039836,120]
[399014159,1766073578100,-1235.404466,0.00039836,120]
[399014160,1766073578128,-1235.404457,0.00039836,120]
[399014161,1766073578168,-151.0,0.00039844,120]
[399014162,1766073578195,-151.0,0.00039847,90]
[399014163,1766073578223,-151.0,0.00039847,90]
[399014164,1766073578249,-392.176687,0.00039847,120]
[399014165,1766073578276,-392.176687,0.00039847,120]
[399014166,1766073578304,-392.176687,0.00039847,120]
[399014167,1766073578333,-392.176693,0.00039847,120]
[399014168,1766073578360,-170.443069,0.00039847,120]
[399014169,1766073578387,-170.443069,0.00039847,120]
[399014170,1766073578414,-170.443069,0.00039847,120]
[399014171,1766073578442,-170.443065,0.00039847,120]
[399014172,1766073578468,-151.0,0.00039847,120]
[399014173,1766073578494,-151.0,0.00039847,120]
[399014174,1766073578521,-151.0,0.00039847,120]
[399014175,1766073578548,-156.246573,0.00039847,120]
[399014176,1766073578574,-151.0,0.00039847,120]
[399014177,1766073578603,-156.246573,0.00039847,120]
[399014178,1766073578630,-151.0,0.00039847,120]
[399014179,1766073578658,-156.246573,0.00039847,120]
[399014180,1766073578685,-151.0,0.00039847,120]
[399014181,1766073578714,-156.246573,0.00039847,120]
[399014182,1766073578743,-151.0,0.00039847,120]
[399014183,1766073578775,-156.246573,0.00039847,120]
[399014184,1766073578807,-156.246573,0.00039847,120]
[399014185,1766073578840,-151.0,0.00039847,120]
[399014186,1766073578877,-156.246573,0.00039847,120]
[399014187,1766073578909,-287.37259231,0.00039847,120]
[399014188,1766073578939,-156.246573,0.00039847,120]
[399014189,1766073578971,-151.0,0.00039847,120]
[399014190,1766073579002,-156.246573,0.00039847,120]
[399014191,1766073579032,-151.0,0.00039847,120]
[399014192,1766073579065,-156.246573,0.00039847,120]
[399014193,1766073579097,-177.036329,0.00039847,120]
[399014194,1766073579126,-156.246573,0.00039847,120]
[399014195,1766073579155,-156.246573,0.00039847,120]
[399014196,1766073579186,-156.246573,0.00039847,120]
[399014197,1766073579217,-156.246573,0.00039847,120]
[399014198,1766073579245,-156.246573,0.00039847,120]
[399014199,1766073579272,-156.246573,0.00039847,120]
[399014200,1766073579301,-631.13963,0.00039847,120]
[399014201,1766073579329,-631.13963,0.00039847,120]
[399014202,1766073579442,-631.13963,0.00039847,120]
[399014203,1766073579469,-631.13963,0.00039847,120]
[399014204,1766073579496,-631.13963,0.00039847,120]
[399014205,1766073579523,-631.13963,0.00039847,120]
[399014206,1766073579548,-631.13963,0.00039847,120]
[399014207,1766073579574,-631.13963,0.00039847,120]
[399014208,1766073579602,-631.13963,0.00039847,120]
[399014209,1766073579629,-631.13963,0.00039847,120]
[399014210,1766073579656,-631.13963,0.00039847,120]
[399014211,1766073579683,-631.13963,0.00039847,120]
[399014212,1766073579711,-631.13963,0.00039847,120]
[399014213,1766073579740,-631.13963,0.00039847,120]
[399014214,1766073579768,-631.13963,0.00039847,120]
[399014215,1766073579795,-631.139622,0.00039847,120]
[399014216,1766073579822,-151.0,0.0003986,120]
[399014217,1766073579849,-151.0,0.0003986,120]
[399014218,1766073579879,-1041.66666667,0.000399,30]
[399014219,1766073579906,-998.9812196,0.0004,120]
[399014220,1766073579934,-173.44185433,0.0004,120]
[399014221,1766073579960,-632.821913,0.0004,120]
[399014222,1766073579992,-200.0,0.0004,120]
[399014223,1766073580021,-299.0,0.00040027,120]
[399014224,1766073580048,-299.0,0.00040027,120]
[399014225,1766073580077,-299.0,0.00040027,120]
[399014226,1766073580111,-410.0,0.00040068,120]
[399014227,1766073580138,-1041.66666667,0.000402,120]
[399014228,1766073580165,-500.0,0.00040367,30]
[399014229,1766073580193,-200.0,0.00040778,120]
[399014230,1766073580223,-1000.0,0.00040866,60]
[399014231,1766073580252,-1000.0,0.00040866,60]
[399014232,1766073580280,-579.0,0.00040866,60]
[399014233,1766073580309,-200.0,0.00040935,120]
[399014234,1766073580336,-500.0,0.00040951,30]
[399014235,1766073580362,-1000.0,0.00041,120]
[399014236,1766073580394,-276.0,0.00041009,120]
[399014237,1766073580426,-1000.0,0.00041095,120]
[399014238,1766073580454,-500.0,0.00041096,120]
[399014239,1766073580481,-500.0,0.00041096,120]
[399014240,1766073580508,-915.26077011,0.00041123,120]
[399014241,1766073580533,-500.0,0.00041201,30]
[399014242,1766073580559,-278.66,0.000413,14]
[399014243,1766073580586,-300.9,0.000413,30]
[399014244,1766073580612,-704.98679284,0.00041381,28]
[399014245,1766073580639,-200.0,0.00041398,120]
[399014246,1766073580665,-500.0,0.00041644,120]
[399014247,1766073580692,-533.26,0.000417,14]
[399014248,1766073580720,-1000.0,0.00042,120]
[399014249,1766073580746,-3000.0,0.00042,20]
[399014250,1766073580772,-770.0,0.00042,20]
[399014251,1766073580800,-250.0,0.00042,120]
[399014252,1766073580919,-200.0,0.00042052,120]
[399014253,1766073580948,-500.0,0.00042192,120]
[399014254,1766073580979,-500.0,0.0004274,120]
[399014255,1766073581008,-200.0,0.00042885,120]
[399014256,1766073581037,-500.0,0.00043,120]
[399014257,1766073581071,-500.0,0.00043278,30]
[399014258,1766073581100,-419.44,0.00043288,120]
[399014259,1766073581130,-679.5,0.00043721,60]
[399014260,1766073581160,-735.5,0.00043721,60]
[399014261,1766073581190,-1000.0,0.000438,90]
[399014262,1766073581219,-1000.0,0.000438,120]
[399014263,1766073581249,-500.0,0.00043836,120]
[399014264,1766073581277,-500.0,0.00044,120]
[399014265,1766073581306,-500.0,0.00044123,30]
[399014266,1766073581339,-162.0,0.000443,120]
[399014267,1766073581369,-533.26,0.000448,14]
[399014268,1766073581399,-1000.0,0.00044953,60]
[399014269,1766073581431,-1000.0,0.00044953,60]
[399014270,1766073581463,-1000.0,0.00044953,60]
[399014271,1766073581495,-500.0,0.00045,120]
[399014272,1766073581532,-998.9812196,0.00045,120]
[399014273,1766073581562,-200.0,0.00045,120]
[399014274,1766073581592,-160.0,0.00045,120]
[399014275,1766073581620,-5083.01445088,0.00045,10]
[399014276,1766073581647,-1034.534,0.00045,120]
[399014277,1766073581675,-1721.41582792,0.00045,30]
[399014278,1766073581703,-300.9,0.00045,30]
[399014279,1766073581731,-1041.66666667,0.00045,30]
[399014280,1766073581760,-200.0,0.00045018,120]
[399014281,1766073581789,-278.66,0.000453,14]
[399014282,1766073581820,-500.0,0.00045552,60]
[399014283,1766073581857,-593.43,0.00045606,10]
[399014284,1766073581896,-375.46836,0.00045863,30]
[399014285,1766073581926,-200.0,0.00045906,120]
[399014286,1766073581955,-704.98679284,0.00045985,28]
[399014287,1766073581985,-500.0,0.00046,120]
[399014288,1766073582014,-1000.0,0.00046,120]
[399014289,1766073582044,-200.0,0.00046,120]
[399014290,1766073582074,-250.84,0.00046192,90]
[399014291,1766073582101,-200.0,0.00046282,120]
[399014292,1766073582132,-150.0,0.00046287,30]
[399014293,1766073582158,-151.26663782,0.00046356,30]
[399014294,1766073582185,-157.9647214,0.00046438,30]
[399014295,1766073582212,-500.0,0.00046575,120]
[399014296,1766073582239,-500.0,0.00046575,120]
[399014297,1766073582267,-151.26663782,0.00046575,30]
[399014298,1766073582293,-500.0,0.00046706,60]
[399014299,1766073582319,-500.0,0.00046712,120]
[399014300,1766073582347,-151.26663782,0.00046795,30]
[399014304,1766073582464,-500.0,0.00046849,120]
[399014305,1766073582492,-500.0,0.00046986,120]
[399014307,1766073582519,-500.0,0.00047,120]
[399014308,1766073582546,-1000.0,0.00047,120]
[399014310,1766073582572,-563.0,0.00047,120]
[399014312,1766073582597,-1000.0,0.00047,120]
[399014313,1766073582624,-30206.98252946,0.00047,15]
[399014315,1766073582650,-151.26663782,0.00047014,30]
[399014317,1766073582676,-200.0,0.00047025,120]
[399014318,1766073582702,-500.0,0.00047123,120]
[399014320,1766073582728,-2618.93016996,0.00047157,15]
[399014322,1766073582755,-151.26663782,0.00047233,30]
[399014323,1766073582781,-492.11083844,0.0004726,120]
[399014325,1766073582808,-300.9,0.000473,30]
[399014327,1766073582839,-151.26663782,0.00047452,30]
[399014328,1766073582868,-151.26663782,0.00047699,30]
[399014330,1766073582897,-151.26663782,0.00047918,30]
[399014332,1766073582926,-500.0,0.00048,120]
[399014333,1766073582955,-1018.0,0.00048,120]
[399014335,1766073582985,-540.09,0.00048,120]
[399014336,1766073583018,-1000.0,0.00048,120]
[399014338,1766073583049,-200.0,0.00048,120]
[399014340,1766073583078,-500.0,0.00048025,60]
[399014341,1766073583108,-533.26,0.000481,14]
[399014343,1766073583138,-151.26663782,0.00048137,30]
[399014345,1766073583167,-151.26663782,0.00048356,30]
[399014346,1766073583202,-150.0,0.00048492,30]
[399014348,1766073583231,-151.26663782,0.00048575,30]
[399014349,1766073583257,-842.32546353,0.00048584,60]
[399014351,1766073583284,-278.66,0.000486,14]
[399014352,1766073583314,-200.0,0.00048604,120]
[399014354,1766073583346,-500.0,0.0004866,120]
[399014356,1766073583374,-151.26663782,0.00048822,30]
[399014357,1766073583404,-1000.26776396,0.0004888,120]
[399014359,1766073583431,-500.0,0.00049,120]
[399014360,1766073583459,-1000.0,0.00049,120]
[399014362,1766073583489,-162.0,0.00049,120]
[399014364,1766073583515,-367.14831693,0.00049,30]
[399014365,1766073583544,-200.0,0.00049083,120]
[399014367,1766073583571,-4800.0,0.000492,20]
[399014369,1766073583597,-300.0,0.00049205,120]
[399014370,1766073583625,-5000.0,0.000493,20]
[399014372,1766073583653,-14479.5098495,0.00049315,60]
[399014373,1766073583681,-500.0,0.00049315,120]
[399014375,1766073583708,-500.0,0.00049315,120]
[399014377,1766073583737,-500.0,0.00049315,120]
[399014378,1766073583766,-371.37,0.00049315,120]
[399014382,1766073583877,-500.0,0.00049315,120]
[399014383,1766073583908,-848.78,0.00049315,120]
[399014385,1766073583937,-160.650166,0.00049315,120]
[399014387,1766073583972,-500.0,0.00049315,120]
[399014388,1766073584004,-169.828463,0.00049315,120]
[399014390,1766073584034,-500.0,0.00049315,120]
[399014391,1766073584065,-302.55376915,0.00049315,120]
[399014393,1766073584095,-500.0,0.00049315,120]
[399014395,1766073584123,-500.0,0.00049315,120]
[399014396,1766073584150,-347.46515073,0.00049315,120]
[399014398,1766073584178,-502.07225684,0.00049315,120]
[399014399,1766073584206,-400.61814688,0.00049315,120]
[399014401,1766073584234,-500.0,0.00049315,120]
[399014403,1766073584262,-501.80876234,0.00049315,120]
[399014404,1766073584291,-502.4793081,0.00049315,120]
[399014406,1766073584318,-369.72283803,0.00049315,120]
[399014408,1766073584346,-1672.469074,0.00049315,120]
[399014409,1766073584374,-500.0,0.00049315,120]
[399014411,1766073584401,-500.0,0.00049315,120]
[399014412,1766073584427,-500.0,0.00049315,120]
[399014414,1766073584453,-500.0,0.00049315,120]
[399014415,1766073584479,-500.0,0.00049315,120]
[399014417,1766073584507,-500.0,0.00049315,120]
[399014418,1766073584534,-500.0,0.00049315,120]
[399014420,1766073584560,-500.0,0.00049315,120]
[399014422,1766073584587,-500.0,0.00049315,120]
[399014423,1766073584619,-241.96647524,0.00049315,120]
[399014425,1766073584645,-500.0,0.00049315,120]
[399014427,1766073584675,-500.0,0.00049315,120]
[399014428,1766073584702,-500.0,0.00049315,120]
[399014430,1766073584729,-500.0,0.00049315,120]
[399014432,1766073584755,-500.0,0.00049315,120]
[399014433,1766073584783,-500.0,0.00049315,120]
[399014435,1766073584811,-500.0,0.00049315,120]
[399014437,1766073584838,-500.0,0.00049315,120]
[399014438,1766073584864,-500.0,0.00049315,120]
[399014440,1766073584892,-500.0,0.00049315,120]
[399014442,1766073584920,-500.0,0.00049315,120]
[399014443,1766073584948,-500.0,0.00049315,120]
[399014445,1766073584978,-500.0,0.00049315,120]
[399014446,1766073585006,-500.0,0.00049315,120]
[399014448,1766073585035,-500.0,0.00049315,120]
[399014449,1766073585064,-501.51434872,0.00049315,120]
[399014451,1766073585093,-500.0,0.00049315,120]
[399014453,1766073585119,-500.0,0.00049315,120]
[399014454,1766073585146,-500.0,0.00049315,120]
[399014458,1766073585261,-500.0,0.00049315,120]
[399014459,1766073585292,-500.0,0.00049315,120]
[399014461,1766073585320,-500.0,0.00049315,120]
[399014463,1766073585350,-500.0,0.00049315,120]
[399014464,1766073585378,-500.0,0.00049315,120]
[399014466,1766073585405,-500.0,0.00049315,100]
[399014468,1766073585433,-500.0,0.00049315,120]
[399014469,1766073585461,-500.0,0.00049315,120]
[399014471,1766073585488,-500.0,0.00049315,120]
[399014472,1766073585517,-500.0,0.00049315,120]
[399014474,1766073585545,-500.0,0.00049315,120]
[399014476,1766073585575,-500.0,0.00049315,120]
[399014477,1766073585604,-500.0,0.00049315,120]
[399014479,1766073585631,-500.0,0.00049315,120]
[399014480,1766073585659,-500.0,0.00049315,120]
[399014482,1766073585687,-500.0,0.00049315,120]
[399014484,1766073585714,-500.0,0.00049315,120]
[399014485,1766073585742,-500.0,0.00049315,120]
[399014487,1766073585771,-500.0,0.00049315,120]
[399014489,1766073585798,-500.0,0.00049315,120]
[399014490,1766073585829,-500.0,0.00049315,120]
[399014492,1766073585858,-500.0,0.00049315,120]
[399014493,1766073585888,-500.0,0.00049315,120]
[399014495,1766073585916,-500.0,0.00049315,120]
[399014497,1766073585945,-500.0,0.00049315,120]
[399014498,1766073585976,-500.0,0.00049315,120]
[399014500,1766073586004,-500.0,0.00049315,120]
[399014501,1766073586035,-500.0,0.00049315,120]
[399014503,1766073586065,-500.0,0.00049315,120]
[399014505,1766073586094,-500.0,0.00049315,120]
[399014506,1766073586122,-500.0,0.00049315,120]
[399014508,1766073586152,-500.0,0.00049315,120]
[399014509,1766073586182,-500.0,0.00049315,120]
[399014511,1766073586212,-500.0,0.00049315,120]
[399014513,1766073586242,-240.71974889,0.00049315,120]
[399014514,1766073586275,-500.0,0.00049315,120]
[399014516,1766073586304,-500.0,0.00049315,120]
[399014517,1766073586333,-500.0,0.00049315,120]
[399014519,1766073586363,-500.0,0.00049315,120]
[399014521,1766073586392,-1217.56,0.00049315,120]
[399014522,1766073586421,-500.0,0.00049315,120]
[399014524,1766073586449,-500.0,0.00049315,120]
[399014525,1766073586477,-500.0,0.00049315,120]
[399014527,1766073586504,-500.0,0.00049315,120]
[399014530,1766073586608,-500.0,0.00049315,120]
[399014532,1766073586639,-500.0,0.00049315,120]
[399014534,1766073586668,-500.0,0.00049315,120]
[399014535,1766073586697,-500.0,0.00049315,120]
[399014537,1766073586726,-500.0,0.00049315,120]
[399014539,1766073586754,-851.21,0.00049315,120]
[399014540,1766073586782,-500.0,0.00049315,120]
[399014542,1766073586810,-500.0,0.00049315,120]
[399014544,1766073586840,-500.0,0.00049315,120]
[399014545,1766073586870,-500.0,0.00049315,120]
[399014547,1766073586900,-500.0,0.00049315,120]
[399014548,1766073586931,-500.0,0.00049315,120]
[399014550,1766073586961,-500.0,0.00049315,120]
[399014552,1766073587000,-500.0,0.00049315,14]
[399014553,1766073587034,-500.0,0.00049315,120]
[399014555,1766073587065,-500.0,0.00049315,120]
[399014557,1766073587096,-500.0,0.00049315,120]
[399014558,1766073587127,-500.0,0.00049315,120]
[399014560,1766073587156,-500.36246816,0.00049315,120]
[399014561,1766073587185,-500.0,0.00049315,120]
[399014563,1766073587215,-500.0,0.00049315,120]
[399014565,1766073587246,-500.0,0.00049315,120]
[399014566,1766073587275,-500.0,0.00049315,120]
[399014568,1766073587303,-500.0,0.00049315,120]
[399014570,1766073587330,-500.0,0.00049315,60]
[399014571,1766073587358,-506.06675425,0.00049315,120]
[399014573,1766073587386,-500.0,0.00049315,120]
[399014575,1766073587412,-500.0,0.00049315,120]
[399014576,1766073587439,-500.0,0.00049315,120]
[399014578,1766073587467,-500.0,0.00049315,120]
[399014579,1766073587494,-500.0,0.00049315,120]
[399014581,1766073587523,-500.0,0.00049315,120]
[399014583,1766073587553,-500.0,0.00049315,120]
[399014584,1766073587581,-500.0,0.00049315,120]
[399014586,1766073587607,-500.0,0.00049315,120]
[399014587,1766073587636,-500.0,0.00049315,120]
[399014589,1766073587664,-500.0,0.00049315,120]
[399014591,1766073587690,-500.0,0.00049315,120]
[399014592,1766073587717,-500.0,0.00049315,120]
[399014594,1766073587744,-500.0,0.00049315,120]
[399014596,1766073587771,-500.0,0.00049315,120]
[399014598,1766073587799,-500.0,0.00049315,120]
[399014599,1766073587827,-500.0,0.00049315,120]
[399014603,1766073587938,-500.0,0.00049315,120]
[399014604,1766073587969,-500.0,0.00049315,120]
[399014606,1766073588004,-500.0,0.00049315,120]
[399014608,1766073588034,-500.0,0.00049315,120]
[399014609,1766073588067,-500.0,0.00049315,120]
[399014611,1766073588098,-500.0,0.00049315,120]
[399014613,1766073588129,-500.0,0.00049315,120]
[399014614,1766073588157,-500.0,0.00049315,120]
[399014616,1766073588184,-500.0,0.00049315,120]
[399014617,1766073588212,-500.0,0.00049315,120]
[399014619,1766073588241,-500.49060893,0.00049315,120]
[399014621,1766073588268,-500.0,0.00049315,120]
[399014622,1766073588294,-500.0,0.00049315,120]
[399014624,1766073588320,-500.0,0.00049315,120]
[399014625,1766073588349,-500.0,0.00049315,120]
[399014627,1766073588379,-500.0,0.00049315,120]
[399014629,1766073588406,-500.0,0.00049315,120]
[399014630,1766073588437,-500.0,0.00049315,120]
[399014632,1766073588464,-500.0,0.00049315,120]
[399014634,1766073588490,-500.0,0.00049315,120]
[399014635,1766073588520,-500.0,0.00049315,120]
[399014637,1766073588549,-500.0,0.00049315,120]
[399014639,1766073588577,-500.0,0.00049315,120]
[399014641,1766073588604,-500.0,0.00049315,120]
[399014642,1766073588632,-500.0,0.00049315,120]